[Event "Late-Titled-Tuesday-Blitz-February-13-2024"]
[Site "Chess.com"]
[Date "2024.02.13"]
[Round "11"]
[White "GMKrikor"]
[Black "Hrant_ChessMood"]
[Result "1/2-1/2"]
[WhiteElo "2840"]
[BlackElo "2954"]
[TimeControl "180+1"]
[EndTime "16:07:16 PST"]
[Termination "Game drawn by repetition"]

1. Nf3 {[%clk 0:02:59]} 1... c5 {[%clk 0:02:57.4]} 2. c4 {[%clk 0:02:59]} 2...
g6 {[%clk 0:02:55]} 3. d4 {[%clk 0:02:54.8]} 3... cxd4 {[%clk 0:02:55.3]} 4.
Nxd4 {[%clk 0:02:55.7]} 4... Nf6 {[%clk 0:02:53.3]} 5. Nc3 {[%clk 0:02:54.2]}
5... Nc6 {[%clk 0:02:53.8]} 6. e4 {[%clk 0:02:53.5]} 6... Nxd4 {[%clk
0:02:54.4]} 7. Qxd4 {[%clk 0:02:54.4]} 7... d6 {[%clk 0:02:55.3]} 8. Be2 {[%clk
0:02:50.4]} 8... Bg7 {[%clk 0:02:55.6]} 9. O-O {[%clk 0:02:42.9]} 9... O-O
{[%clk 0:02:55]} 10. Bg5 {[%clk 0:02:34.8]} 10... a5 {[%clk 0:02:53.6]} 11. Qe3
{[%clk 0:02:31.8]} 11... a4 {[%clk 0:02:52.1]} 12. Rac1 {[%clk 0:02:12.4]} 12...
Qa5 {[%clk 0:02:40.4]} 13. Rfd1 {[%clk 0:02:11]} 13... Be6 {[%clk 0:02:40.4]}
14. h3 {[%clk 0:01:57.1]} 14... Rfc8 {[%clk 0:02:35.7]} 15. Nd5 {[%clk 0:01:55]}
15... Bxd5 {[%clk 0:02:27]} 16. exd5 {[%clk 0:01:55]} 16... Qb4 {[%clk
0:02:01.2]} 17. Rb1 {[%clk 0:01:25.3]} 17... Re8 {[%clk 0:01:58.1]} 18. Qd3
{[%clk 0:01:17.2]} 18... Nd7 {[%clk 0:01:56.1]} 19. Bd2 {[%clk 0:01:17.2]} 19...
Qb6 {[%clk 0:01:52]} 20. b4 {[%clk 0:01:08.9]} 20... axb3 {[%clk 0:01:51.8]} 21.
axb3 {[%clk 0:01:09.8]} 21... Ra2 {[%clk 0:01:51.8]} 22. Be3 {[%clk 0:01:07.2]}
22... Qb4 {[%clk 0:01:51]} 23. Bd2 {[%clk 0:01:03.8]} 23... Qa3 {[%clk
0:01:51.3]} 24. b4 {[%clk 0:00:53.1]} 24... Qa7 {[%clk 0:01:28.6]} 25. Be3
{[%clk 0:00:50]} 25... b6 {[%clk 0:01:29.2]} 26. Bf1 {[%clk 0:00:44.6]} 26...
Ra8 {[%clk 0:01:28.9]} 27. Qe4 {[%clk 0:00:43.6]} 27... Bf6 {[%clk 0:01:23.3]}
28. h4 {[%clk 0:00:30.3]} 28... h5 {[%clk 0:01:20.9]} 29. g3 {[%clk 0:00:28.6]}
29... Ne5 {[%clk 0:01:14.7]} 30. c5 {[%clk 0:00:20.3]} 30... bxc5 {[%clk
0:01:12.1]} 31. bxc5 {[%clk 0:00:21.2]} 31... Ra4 {[%clk 0:00:52.4]} 32. Qg2
{[%clk 0:00:12.2]} 32... Ng4 {[%clk 0:00:47.7]} 33. Bf4 {[%clk 0:00:02.4]} 33...
Qxc5 {[%clk 0:00:42.9]} 34. Be2 {[%clk 0:00:02.9]} 34... Rxf4 {[%clk 0:00:32.9]}
35. gxf4 {[%clk 0:00:02.7]} 35... Bxh4 {[%clk 0:00:26.5]} 36. Bxg4 {[%clk
0:00:02.9]} 36... hxg4 {[%clk 0:00:27.4]} 37. Rbc1 {[%clk 0:00:03.3]} 37... Qa7
{[%clk 0:00:24]} 38. Ra1 {[%clk 0:00:02.4]} 38... Qxa1 {[%clk 0:00:23.3]} 39.
Rxa1 {[%clk 0:00:03.3]} 39... Rxa1+ {[%clk 0:00:23.6]} 40. Kh2 {[%clk
0:00:03.8]} 40... f5 {[%clk 0:00:18.9]} 41. f3 {[%clk 0:00:03.1]} 41... g3+
{[%clk 0:00:04.4]} 42. Kh3 {[%clk 0:00:03.6]} 42... Bf6 {[%clk 0:00:04.1]} 43.
Kxg3 {[%clk 0:00:02.9]} 43... Kg7 {[%clk 0:00:04.4]} 44. Qe2 {[%clk 0:00:02.4]}
44... Ra4 {[%clk 0:00:04.3]} 45. Qd2 {[%clk 0:00:02.4]} 45... Rd4 {[%clk
0:00:05.2]} 46. Qe3 {[%clk 0:00:02.6]} 46... Rxd5 {[%clk 0:00:05.3]} 47. Qb3
{[%clk 0:00:03.4]} 47... Rd4 {[%clk 0:00:05.5]} 48. Qe6 {[%clk 0:00:04]} 48...
Rd2 {[%clk 0:00:04.7]} 49. Qe3 {[%clk 0:00:03.9]} 49... Rd4 {[%clk 0:00:05.6]}
50. Qe6 {[%clk 0:00:04.2]} 50... Rb4 {[%clk 0:00:05.9]} 51. Qe3 {[%clk
0:00:04.5]} 51... Rb5 {[%clk 0:00:06.3]} 52. Qe6 {[%clk 0:00:04.7]} 52... Rc5
{[%clk 0:00:07.2]} 53. Qd7 {[%clk 0:00:04.8]} 53... d5 {[%clk 0:00:07.2]} 54.
Qe6 {[%clk 0:00:04.7]} 54... d4 {[%clk 0:00:07.6]} 55. Qe2 {[%clk 0:00:04.8]}
55... Rc3 {[%clk 0:00:07.5]} 56. Qd2 {[%clk 0:00:04.4]} 56... Rc6 {[%clk
0:00:07.6]} 57. Qd3 {[%clk 0:00:04.5]} 57... Rd6 {[%clk 0:00:08.5]} 58. Kf2
{[%clk 0:00:04.2]} 58... Re6 {[%clk 0:00:08.5]} 59. Qc4 {[%clk 0:00:03.7]} 59...
Re3 {[%clk 0:00:09.4]} 60. Qd5 {[%clk 0:00:03.5]} 60... Ra3 {[%clk 0:00:09.1]}
61. Qc5 {[%clk 0:00:02.9]} 61... Ra2+ {[%clk 0:00:09.4]} 62. Kg3 {[%clk
0:00:03.5]} 62... d3 {[%clk 0:00:09.5]} 63. Qd5 {[%clk 0:00:03.2]} 63... d2
{[%clk 0:00:09.6]} 64. Kh3 {[%clk 0:00:03.7]} 64... Rb2 {[%clk 0:00:09.9]} 65.
Kg3 {[%clk 0:00:03.8]} 65... Rc2 {[%clk 0:00:07.5]} 66. Kh3 {[%clk 0:00:04]}
66... Bc3 {[%clk 0:00:05.3]} 67. Qd7 {[%clk 0:00:03.4]} 67... Bb4 {[%clk
0:00:02.8]} 68. Qd4+ {[%clk 0:00:02.9]} 68... Kg8 {[%clk 0:00:02.1]} 69. Qd5+
{[%clk 0:00:02.5]} 69... Kf8 {[%clk 0:00:02.7]} 70. Qd8+ {[%clk 0:00:02.7]}
70... Kg7 {[%clk 0:00:02.2]} 71. Qd5 {[%clk 0:00:02.9]} 71... Kh7 {[%clk
0:00:02.6]} 72. Qd3 {[%clk 0:00:02.9]} 72... Rc6 {[%clk 0:00:02.1]} 73. Qe2
{[%clk 0:00:02.5]} 73... Re6 {[%clk 0:00:01.7]} 74. Qxe6 {[%clk 0:00:02.5]}
74... d1=Q {[%clk 0:00:02.3]} 75. Qf7+ {[%clk 0:00:03.3]} 75... Kh6 {[%clk
0:00:02.9]} 76. Qf8+ {[%clk 0:00:03.8]} 76... Kh7 {[%clk 0:00:03.3]} 77. Qf7+
{[%clk 0:00:04.4]} 77... Kh6 {[%clk 0:00:03.1]} 78. Qf8+ {[%clk 0:00:04.8]}
78... Kh7 {[%clk 0:00:04]} 79. Qf7+ {[%clk 0:00:05.4]} 1/2-1/2

[Event "Late-Titled-Tuesday-Blitz-February-13-2024"]
[Site "Chess.com"]
[Date "2024.02.13"]
[Round "11"]
[White "ChadBiryani"]
[Black "Qingdom"]
[Result "0-1"]
[WhiteElo "2437"]
[BlackElo "2259"]
[TimeControl "180+1"]
[EndTime "16:07:17 PST"]
[Termination "Qingdom won by checkmate"]

1. d4 {[%clk 0:02:58.8]} 1... Nf6 {[%clk 0:02:59.5]} 2. Bg5 {[%clk 0:02:58.5]}
2... c5 {[%clk 0:02:56.7]} 3. d5 {[%clk 0:02:57.8]} 3... Qb6 {[%clk 0:02:55.2]}
4. Nd2 {[%clk 0:02:55.5]} 4... Nxd5 {[%clk 0:02:54.2]} 5. Rb1 {[%clk 0:02:52.3]}
5... e6 {[%clk 0:02:50.4]} 6. e4 {[%clk 0:02:52.1]} 6... Be7 {[%clk 0:02:44.2]}
7. h4 {[%clk 0:02:31.6]} 7... Nf6 {[%clk 0:02:33.8]} 8. e5 {[%clk 0:02:16.1]}
8... Nd5 {[%clk 0:02:33.2]} 9. Nc4 {[%clk 0:02:15.6]} 9... Qc7 {[%clk 0:02:33]}
10. Bxe7 {[%clk 0:02:15.1]} 10... Kxe7 {[%clk 0:02:32.2]} 11. Qg4 {[%clk
0:02:08.3]} 11... g6 {[%clk 0:02:23.1]} 12. Qg5+ {[%clk 0:01:52.5]} 12... f6
{[%clk 0:02:20.8]} 13. Qh6 {[%clk 0:01:53.1]} 13... Kf7 {[%clk 0:02:11.2]} 14.
Nf3 {[%clk 0:01:51.8]} 14... b5 {[%clk 0:01:59.8]} 15. Nd6+ {[%clk 0:01:51.9]}
15... Kg8 {[%clk 0:01:55.5]} 16. Bd3 {[%clk 0:01:46.6]} 16... fxe5 {[%clk
0:01:49.3]} 17. Nxb5 {[%clk 0:01:45.9]} 17... Qa5+ {[%clk 0:01:47.6]} 18. c3
{[%clk 0:01:36.4]} 18... Nc6 {[%clk 0:01:46.1]} 19. Bxg6 {[%clk 0:01:24.6]}
19... hxg6 {[%clk 0:01:43.5]} 20. Qxg6+ {[%clk 0:01:24.4]} 20... Kf8 {[%clk
0:01:43.6]} 21. Ng5 {[%clk 0:01:24.6]} 21... Nd8 {[%clk 0:01:27.2]} 22. Nd6
{[%clk 0:01:18.6]} 22... Ke7 {[%clk 0:01:21.4]} 23. Nde4 {[%clk 0:01:16.7]}
23... Rf8 {[%clk 0:01:15.1]} 24. Qg7+ {[%clk 0:01:05.6]} 24... Nf7 {[%clk
0:01:11.6]} 25. Nh7 {[%clk 0:00:56.6]} 25... Ba6 {[%clk 0:01:06]} 26. Nxf8
{[%clk 0:00:50.8]} 26... Rxf8 {[%clk 0:01:05.6]} 27. Kd2 {[%clk 0:00:24]} 27...
Qb5 {[%clk 0:01:04]} 28. Kc1 {[%clk 0:00:19.9]} 28... Qe2 {[%clk 0:00:55.2]} 29.
Nxc5 {[%clk 0:00:12.3]} 29... Nf4 {[%clk 0:00:44.8]} 30. Rd1 {[%clk 0:00:10.4]}
30... Bd3 {[%clk 0:00:36.3]} 31. Nxd3 {[%clk 0:00:09.5]} 31... Nxd3+ {[%clk
0:00:36.1]} 32. Rxd3 {[%clk 0:00:08.1]} 32... Qxd3 {[%clk 0:00:36.5]} 33. h5
{[%clk 0:00:06.3]} 33... Qf1+ {[%clk 0:00:34.6]} 34. Kc2 {[%clk 0:00:06.4]}
34... Qxf2+ {[%clk 0:00:33.8]} 35. Kb3 {[%clk 0:00:05.1]} 35... Rb8+ {[%clk
0:00:33.3]} 36. Ka3 {[%clk 0:00:05.6]} 36... Qc5+ {[%clk 0:00:32.3]} 37. b4
{[%clk 0:00:01.5]} 37... Qxc3+ {[%clk 0:00:32]} 38. Rb3 {[%clk 0:00:02.3]} 38...
Qc1+ {[%clk 0:00:31.1]} 39. Ka4 {[%clk 0:00:02.8]} 39... Qc6+ {[%clk 0:00:28.8]}
40. Ka3 {[%clk 0:00:03.2]} 40... a5 {[%clk 0:00:26.7]} 41. Qg4 {[%clk
0:00:02.4]} 41... axb4+ {[%clk 0:00:26]} 42. Kb2 {[%clk 0:00:03.2]} 42... Qc5
{[%clk 0:00:19.7]} 43. h6 {[%clk 0:00:03]} 43... Qd4+ {[%clk 0:00:19.9]} 44.
Qxd4 {[%clk 0:00:03.7]} 44... exd4 {[%clk 0:00:20.3]} 45. Rh3 {[%clk 0:00:04]}
45... Rh8 {[%clk 0:00:19.4]} 46. h7 {[%clk 0:00:04.6]} 46... Kf6 {[%clk
0:00:19.3]} 47. Kb3 {[%clk 0:00:05]} 47... Kg7 {[%clk 0:00:18.6]} 48. Kxb4
{[%clk 0:00:05.6]} 48... Rxh7 {[%clk 0:00:19]} 49. Rd3 {[%clk 0:00:05.9]} 49...
Rh2 {[%clk 0:00:18.3]} 50. Rg3+ {[%clk 0:00:05.4]} 50... Kf6 {[%clk 0:00:18]}
51. a4 {[%clk 0:00:06.3]} 51... Rh1 {[%clk 0:00:17.3]} 52. Ra3 {[%clk
0:00:05.1]} 52... Rb1+ {[%clk 0:00:16.4]} 53. Kc4 {[%clk 0:00:05.3]} 53... e5
{[%clk 0:00:15.5]} 54. a5 {[%clk 0:00:05.3]} 54... Ke6 {[%clk 0:00:14.8]} 55. a6
{[%clk 0:00:05.5]} 55... Nd6+ {[%clk 0:00:14.6]} 56. Kd3 {[%clk 0:00:05.5]}
56... Rb8 {[%clk 0:00:13.7]} 57. a7 {[%clk 0:00:05.9]} 57... Ra8 {[%clk
0:00:14]} 58. g4 {[%clk 0:00:06.2]} 58... Nb5 {[%clk 0:00:14]} 59. Ra5 {[%clk
0:00:05.6]} 59... Nxa7 {[%clk 0:00:13.8]} 60. Ke4 {[%clk 0:00:05.7]} 60... Rg8
{[%clk 0:00:11.2]} 61. Rxe5+ {[%clk 0:00:05.8]} 61... Kd6 {[%clk 0:00:11.4]} 62.
Rd5+ {[%clk 0:00:06.2]} 62... Kc6 {[%clk 0:00:11.5]} 63. g5 {[%clk 0:00:06.8]}
63... Re8+ {[%clk 0:00:11]} 64. Re5 {[%clk 0:00:06.3]} 64... Rxe5+ {[%clk
0:00:10.6]} 65. Kxe5 {[%clk 0:00:07.2]} 65... d3 {[%clk 0:00:10.7]} 66. g6
{[%clk 0:00:07.8]} 66... d2 {[%clk 0:00:10.3]} 67. g7 {[%clk 0:00:08.4]} 67...
d1=Q {[%clk 0:00:10.5]} 68. g8=Q {[%clk 0:00:08.8]} 68... Qe2+ {[%clk
0:00:07.9]} 69. Kf4 {[%clk 0:00:07.3]} 69... Qf2+ {[%clk 0:00:07.2]} 70. Ke4
{[%clk 0:00:06.9]} 70... Qe2+ {[%clk 0:00:04.5]} 71. Kf4 {[%clk 0:00:06]} 71...
Qe6 {[%clk 0:00:04.2]} 72. Qa8+ {[%clk 0:00:05.2]} 72... Kb6 {[%clk 0:00:04.2]}
73. Qb8+ {[%clk 0:00:05.8]} 73... Ka6 {[%clk 0:00:04.2]} 74. Qb2 {[%clk
0:00:04.8]} 74... Nc6 {[%clk 0:00:04.1]} 75. Qa3+ {[%clk 0:00:04.6]} 75... Kb7
{[%clk 0:00:04.3]} 76. Qb2+ {[%clk 0:00:04.7]} 76... Kc7 {[%clk 0:00:04.1]} 77.
Qc3 {[%clk 0:00:03.8]} 77... Qd6+ {[%clk 0:00:03.2]} 78. Kf3 {[%clk 0:00:01.5]}
78... Qd5+ {[%clk 0:00:03.4]} 79. Kf2 {[%clk 0:00:01.7]} 79... Qd4+ {[%clk
0:00:02.7]} 80. Qxd4 {[%clk 0:00:01.4]} 80... Nxd4 {[%clk 0:00:02.9]} 81. Ke3
{[%clk 0:00:01.9]} 81... Ne6 {[%clk 0:00:03.4]} 82. Ke4 {[%clk 0:00:02.3]} 82...
Kd6 {[%clk 0:00:04.1]} 83. Kd3 {[%clk 0:00:02.7]} 83... Nc5+ {[%clk 0:00:04.3]}
84. Kc4 {[%clk 0:00:02.9]} 84... Kc6 {[%clk 0:00:05]} 85. Kd4 {[%clk 0:00:03.5]}
85... d5 {[%clk 0:00:05.4]} 86. Kc3 {[%clk 0:00:03.6]} 86... Kd6 {[%clk
0:00:05.6]} 87. Kd4 {[%clk 0:00:04.5]} 87... Ne6+ {[%clk 0:00:05.9]} 88. Kd3
{[%clk 0:00:05]} 88... Ke5 {[%clk 0:00:06.5]} 89. Ke3 {[%clk 0:00:05.9]} 89...
d4+ {[%clk 0:00:06.9]} 90. Kd3 {[%clk 0:00:06.8]} 90... Kd5 {[%clk 0:00:07.4]}
91. Kd2 {[%clk 0:00:07.2]} 91... Ke4 {[%clk 0:00:07.7]} 92. Ke2 {[%clk
0:00:08.1]} 92... d3+ {[%clk 0:00:07.9]} 93. Kd2 {[%clk 0:00:09]} 93... Kd4
{[%clk 0:00:08.3]} 94. Kd1 {[%clk 0:00:09.9]} 94... Ke3 {[%clk 0:00:08.6]} 95.
Kc1 {[%clk 0:00:10.6]} 95... Ke2 {[%clk 0:00:08.5]} 96. Kb2 {[%clk 0:00:10.9]}
96... d2 {[%clk 0:00:08.9]} 97. Kc3 {[%clk 0:00:10.9]} 97... d1=Q {[%clk
0:00:09.1]} 98. Kc4 {[%clk 0:00:11.8]} 98... Qc2+ {[%clk 0:00:08.9]} 99. Kb4
{[%clk 0:00:12.1]} 99... Kd3 {[%clk 0:00:07.9]} 100. Ka3 {[%clk 0:00:13]} 100...
Qb1 {[%clk 0:00:07.6]} 101. Ka4 {[%clk 0:00:13.5]} 101... Kc4 {[%clk 0:00:07.9]}
102. Ka5 {[%clk 0:00:14.4]} 102... Qb5# {[%clk 0:00:07.9]} 0-1